Workbook

Sheet 従業員情報
A2: 従業員情報
A3: [会社名]
A4: 従業員 ID | B4: 従業員名 | C4: 時給 | D4: 課税状況 | E4: 連邦手当 (W-4 から) | F4: 州税 | G4: 連邦所得税 (連邦手当に基づく割合) | H4: 社会保障税 | I4: 医療税 | J4: 源泉徴収税額の合計 | K4: 保険控除 | L4: その他の通常控除 | M4: 通常控除の合計 (税金を除く)
A5: 1 | B5: Jesper Aaberg | C5: ¥10.00 | D5: 1 | E5: 4 | F5: 2.30% | G5: 28.00% | H5: 6.30% | I5: 1.45% | J5: =テーブル_1[[#This Row],[州税]]+テーブル_1[[#This Row],[連邦所得税 (連邦手当に基づく割合)]]+テーブル_1[[#This Row],[社会保障税]]+テーブル_1[[#This Row],[医療税]] -> 38.05% | K5: ¥20.00 | L5: ¥40.00 | M5: =テーブル_1[[#This Row],[保険控除]]+テーブル_1[[#This Row],[その他の通常控除]] -> ¥60.00
A6: 2 | B6: Wilson Pais | C6: ¥13.00 | D6: 1 | E6: 4 | F6: 2.30% | G6: 28.00% | H6: 6.30% | I6: 1.45% | J6: =テーブル_1[[#This Row],[州税]]+テーブル_1[[#This Row],[連邦所得税 (連邦手当に基づく割合)]]+テーブル_1[[#This Row],[社会保障税]]+テーブル_1[[#This Row],[医療税]] -> 38.05% | K6: ¥20.00 | L6: ¥52.00 | M6: =テーブル_1[[#This Row],[保険控除]]+テーブル_1[[#This Row],[その他の通常控除]] -> ¥72.00
A7: 3 | B7: Kathie Flood | C7: ¥10.00 | D7: 1 | E7: 4 | F7: 2.30% | G7: 28.00% | H7: 6.30% | I7: 1.45% | J7: =テーブル_1[[#This Row],[州税]]+テーブル_1[[#This Row],[連邦所得税 (連邦手当に基づく割合)]]+テーブル_1[[#This Row],[社会保障税]]+テーブル_1[[#This Row],[医療税]] -> 38.05% | K7: ¥20.00 | L7: 0 | M7: =テーブル_1[[#This Row],[保険控除]]+テーブル_1[[#This Row],[その他の通常控除]] -> ¥20.00

Sheet 給与計算
A1: 給与計算
J2: 期間の終了日: | K2: 4568800.00%
A3: =従業員情報!$A$3 -> [会社名]
A4: 従業員 ID | B4: 従業員名 | C4: 所定労働時間内の 勤務時間 | D4: 休暇時間 | E4: 病欠時間 | F4: 時間外労働時間 | G4: 残業手当 | H4: 総支給額 | I4: 税金および控除 | J4: その他の控除 | K4: 正味支給額
A5: 1 | B5: =VLOOKUP(A5,テーブル_1[],2,FALSE) -> Jesper Aaberg | C5: 50.00 | D5: 5.00 | E5: 1.00 | H5: =(VLOOKUP(A5,テーブル_1[],3,FALSE)*(テーブル_2[[#This Row],[所定労働時間内の 勤務時間]]+テーブル_2[[#This Row],[休暇時間]]+テーブル_2[[#This Row],[病欠時間]])+テーブル_2[[#This Row],[時間外労働時間]]*テーブル_2[[#This Row],[残業手当]]) -> ¥560.00 | I5: =VLOOKUP(A5,テーブル_1[],10,FALSE)*テーブル_2[[#This Row],[総支給額]]+テーブル_1[[#This Row],[通常控除の合計 (税金を除く)]] -> ¥273.08 | J5: ¥20.00 | K5: =テーブル_2[[#This Row],[総支給額]]-テーブル_2[[#This Row],[税金および控除 ]]-テーブル_2[[#This Row],[その他の控除]] -> ¥266.92
A6: 2 | B6: =VLOOKUP(A6,テーブル_1[],2,FALSE) -> Wilson Pais | C6: 40.00 | D6: 0.00 | E6: 0.00 | H6: =(VLOOKUP(A6,テーブル_1[],3,FALSE)*(テーブル_2[[#This Row],[所定労働時間内の 勤務時間]]+テーブル_2[[#This Row],[休暇時間]]+テーブル_2[[#This Row],[病欠時間]])+テーブル_2[[#This Row],[時間外労働時間]]*テーブル_2[[#This Row],[残業手当]]) -> ¥520.00 | I6: =VLOOKUP(A6,テーブル_1[],10,FALSE)*テーブル_2[[#This Row],[総支給額]]+テーブル_1[[#This Row],[通常控除の合計 (税金を除く)]] -> ¥269.86 | J6: ¥52.00 | K6: =テーブル_2[[#This Row],[総支給額]]-テーブル_2[[#This Row],[税金および控除 ]]-テーブル_2[[#This Row],[その他の控除]] -> ¥198.14
A7: 3 | B7: =VLOOKUP(A7,テーブル_1[],2,FALSE) -> Kathie Flood | C7: 52.00 | D7: 0.00 | E7: 0.00 | F7: 2.00 | G7: ¥20.00 | H7: =(VLOOKUP(A7,テーブル_1[],3,FALSE)*(テーブル_2[[#This Row],[所定労働時間内の 勤務時間]]+テーブル_2[[#This Row],[休暇時間]]+テーブル_2[[#This Row],[病欠時間]])+テーブル_2[[#This Row],[時間外労働時間]]*テーブル_2[[#This Row],[残業手当]]) -> ¥560.00 | I7: =VLOOKUP(A7,テーブル_1[],10,FALSE)*テーブル_2[[#This Row],[総支給額]]+テーブル_1[[#This Row],[通常控除の合計 (税金を除く)]] -> ¥233.08 | J7: ¥20.00 | K7: =テーブル_2[[#This Row],[総支給額]]-テーブル_2[[#This Row],[税金および控除 ]]-テーブル_2[[#This Row],[その他の控除]] -> ¥306.92

Sheet 個人の給与明細表
C2: =(従業員情報!$A$3) -> [会社名]
C3: 期間: | D3: =給与計算!$K$2 -> 4568800.00% | E3: 従業員名 | F3: =IFERROR(VLOOKUP(H3,テーブル_1[],2),"") -> Jesper Aaberg | G3: 従業員 ID | H3: 1
C5: 課税状況 | D5: =IFERROR(VLOOKUP(H3,テーブル_1[],4),"") -> 1 | E5: 連邦手当 (W-4 から) | F5: =IFERROR(VLOOKUP(H3,テーブル_1[],5,FALSE),"") -> 4 | G5: 勤務時間 | H5: =IFERROR(VLOOKUP(H3,テーブル_2[],3,FALSE),"") -> 50
C6: 時給 | D6: =IFERROR(VLOOKUP(H3,テーブル_1[],3,FALSE),"") -> ¥10.00 | E6: 残業手当 | F6: =IFERROR(VLOOKUP(H3,テーブル_2[],7,FALSE),"") -> 0 | G6: 病欠時間 | H6: =IFERROR(VLOOKUP(H3,テーブル_2[],5,FALSE),"") -> 1
C7: 社会保障税 | D7: =IFERROR(IFERROR(VLOOKUP(H3,テーブル_1[],8,FALSE),"")*H9,"") -> ¥35.28 | E7: 連邦法人税 | F7: =IFERROR(IFERROR(VLOOKUP(H3,テーブル_1[],7,FALSE),"")*H9,"") -> ¥156.80 | G7: 休暇時間 | H7: =IFERROR(VLOOKUP(H3,テーブル_2[],4,FALSE),"") -> 5
C8: 医療税 | D8: =IFERROR(IFERROR(VLOOKUP(H3,テーブル_1[],9,FALSE),"")*H9,"") -> ¥8.12 | E8: 州税 | F8: =IFERROR(IFERROR(VLOOKUP(H3,テーブル_1[],6,FALSE),"")*H9,"") -> ¥12.88 | G8: 残業時間 | H8: =IFERROR(VLOOKUP(H3,テーブル_2[],6,FALSE),"") -> 0
C9: 保険控除 | D9: =IFERROR(VLOOKUP(H3,テーブル_1[],11,FALSE),"") -> ¥20.00 | E9: その他の通常控除 | F9: =IFERROR(VLOOKUP(H3,テーブル_1[],12,FALSE),"") -> ¥40.00 | G9: 総支払 | H9: =IFERROR(VLOOKUP(H3,テーブル_2[],8,FALSE),"") -> ¥560.00
C10: 税合計と通常控除 | D10: =IFERROR(SUM(F7:F9)+SUM(D7:D9),"") -> ¥273.08 | E10: その他の控除 | F10: =IFERROR(VLOOKUP(H3,テーブル_2[],10,FALSE),"") -> ¥20.00 | G10: 税合計および控除 | H10: =IFERROR(IFERROR(VLOOKUP(H3,テーブル_2[],9,FALSE),"")+F10,"") -> ¥293.08
G11: 正味支払 | H11: =IFERROR(VLOOKUP(H3,テーブル_2[],11,FALSE),"") -> ¥266.92
C14: =(従業員情報!$A$3) -> [会社名]
C15: 期間: | D15: =給与計算!$K$2 -> 4568800.00% | E15: 従業員名 | F15: =IFERROR(VLOOKUP(H15,テーブル_1[],2),"") -> Wilson Pais | G15: 従業員 ID | H15: 2
C17: 課税状況 | D17: =IFERROR(VLOOKUP(H15,テーブル_1[],4),"") -> 1 | E17: 連邦手当 (W-4 から) | F17: =IFERROR(VLOOKUP(H15,テーブル_1[],5,FALSE),"") -> 4 | G17: 勤務時間 | H17: =IFERROR(VLOOKUP(H15,テーブル_2[],3,FALSE),"") -> 40
C18: 時給 | D18: =IFERROR(VLOOKUP(H15,テーブル_1[],3,FALSE),"") -> ¥13.00 | E18: 残業手当 | F18: =IFERROR(VLOOKUP(H15,テーブル_2[],7,FALSE),"") -> 0 | G18: 病欠時間 | H18: =IFERROR(VLOOKUP(H15,テーブル_2[],5,FALSE),"") -> 0
C19: 社会保障税 | D19: =IFERROR(IFERROR(VLOOKUP(H15,テーブル_1[],8,FALSE),"")*H21,"") -> ¥32.76 | E19: 連邦法人税 | F19: =IFERROR(IFERROR(VLOOKUP(H15,テーブル_1[],7,FALSE),"")*H21,"") -> ¥145.60 | G19: 休暇時間 | H19: =IFERROR(VLOOKUP(H15,テーブル_2[],4,FALSE),"") -> 0
C20: 医療税 | D20: =IFERROR(IFERROR(VLOOKUP(H15,テーブル_1[],9,FALSE),"")*H21,"") -> ¥7.54 | E20: 州税 | F20: =IFERROR(IFERROR(VLOOKUP(H15,テーブル_1[],6,FALSE),"")*H21,"") -> ¥11.96 | G20: 残業時間 | H20: =IFERROR(VLOOKUP(H15,テーブル_2[],6,FALSE),"") -> 0
C21: 保険控除 | D21: =IFERROR(VLOOKUP(H15,テーブル_1[],11,FALSE),"") -> ¥20.00 | E21: その他の通常控除 | F21: =IFERROR(VLOOKUP(H15,テーブル_1[],12,FALSE),"") -> ¥52.00 | G21: 総支払 | H21: =IFERROR(VLOOKUP(H15,テーブル_2[],8,FALSE),"") -> ¥520.00
C22: 税合計と通常控除 | D22: =IFERROR(SUM(F19:F21)+SUM(D19:D21),"") -> ¥269.86 | E22: その他の控除 | F22: =IFERROR(VLOOKUP(H15,テーブル_2[],10,FALSE),"") -> ¥52.00 | G22: 税合計および控除 | H22: =IFERROR(IFERROR(VLOOKUP(H15,テーブル_2[],9,FALSE),"")+F22,"") -> ¥321.86
G23: 正味支払 | H23: =IFERROR(VLOOKUP(H15,テーブル_2[],11,FALSE),"") -> ¥198.14
C26: =(従業員情報!$A$3) -> [会社名]
C27: 期間: | D27: =給与計算!$K$2 -> 4568800.00% | E27: 従業員名 | F27: =IFERROR(VLOOKUP(H27,テーブル_1[],2),"") -> Kathie Flood | G27: 従業員 ID | H27: 3
C29: 課税状況 | D29: =IFERROR(VLOOKUP(H27,テーブル_1[],4),"") -> 1 | E29: 連邦手当 (W-4 から) | F29: =IFERROR(VLOOKUP(H27,テーブル_1[],5,FALSE),"") -> 4 | G29: 勤務時間 | H29: =IFERROR(VLOOKUP(H27,テーブル_2[],3,FALSE),"") -> 52
C30: 時給 | D30: =IFERROR(VLOOKUP(H27,テーブル_1[],3,FALSE),"") -> ¥10.00 | E30: 残業手当 | F30: =IFERROR(VLOOKUP(H27,テーブル_2[],7,FALSE),"") -> ¥20.00 | G30: 病欠時間 | H30: =IFERROR(VLOOKUP(H27,テーブル_2[],5,FALSE),"") -> 0
C31: 社会保障税 | D31: =IFERROR(IFERROR(VLOOKUP(H27,テーブル_1[],8,FALSE),"")*H33,"") -> ¥35.28 | E31: 連邦法人税 | F31: =IFERROR(IFERROR(VLOOKUP(H27,テーブル_1[],7,FALSE),"")*H33,"") -> ¥156.80 | G31: 休暇時間 | H31: =IFERROR(VLOOKUP(H27,テーブル_2[],4,FALSE),"") -> 0
C32: 医療税 | D32: =IFERROR(IFERROR(VLOOKUP(H27,テーブル_1[],9,FALSE),"")*H33,"") -> ¥8.12 | E32: 州税 | F32: =IFERROR(IFERROR(VLOOKUP(H27,テーブル_1[],6,FALSE),"")*H33,"") -> ¥12.88 | G32: 残業時間 | H32: =IFERROR(VLOOKUP(H27,テーブル_2[],6,FALSE),"") -> 2
C33: 保険控除 | D33: =IFERROR(VLOOKUP(H27,テーブル_1[],11,FALSE),"") -> ¥20.00 | E33: その他の通常控除 | F33: =IFERROR(VLOOKUP(H27,テーブル_1[],12,FALSE),"") -> 0 | G33: 総支払 | H33: =IFERROR(VLOOKUP(H27,テーブル_2[],8,FALSE),"") -> ¥560.00
C34: 税合計と通常控除 | D34: =IFERROR(SUM(F31:F33)+SUM(D31:D33),"") -> ¥233.08 | E34: その他の控除 | F34: =IFERROR(VLOOKUP(H27,テーブル_2[],10,FALSE),"") -> ¥20.00 | G34: 税合計および控除 | H34: =IFERROR(IFERROR(VLOOKUP(H27,テーブル_2[],9,FALSE),"")+F34,"") -> ¥253.08
G35: 正味支払 | H35: =IFERROR(VLOOKUP(H27,テーブル_2[],11,FALSE),"") -> ¥306.92
C39: =(従業員情報!$A$3) -> [会社名]
C40: 期間: | D40: =給与計算!$K$2 -> 4568800.00% | E40: 従業員名 | F40: =IFERROR(VLOOKUP(H40,テーブル_1[],2),"") ->  | G40: 従業員 ID
C42: 課税状況 | D42: =IFERROR(VLOOKUP(H40,テーブル_1[],4),"") ->  | E42: 連邦手当 (W-4 から) | F42: =IFERROR(VLOOKUP(H40,テーブル_1[],5,FALSE),"") ->  | G42: 勤務時間 | H42: =IFERROR(VLOOKUP(H40,テーブル_2[],3,FALSE),"") -> 
C43: 時給 | D43: =IFERROR(VLOOKUP(H40,テーブル_1[],3,FALSE),"") ->  | E43: 残業手当 | F43: =IFERROR(VLOOKUP(H40,テーブル_2[],7,FALSE),"") ->  | G43: 病欠時間 | H43: =IFERROR(VLOOKUP(H40,テーブル_2[],5,FALSE),"") -> 
C44: 社会保障税 | D44: =IFERROR(IFERROR(VLOOKUP(H40,テーブル_1[],8,FALSE),"")*H46,"") ->  | E44: 連邦法人税 | F44: =IFERROR(IFERROR(VLOOKUP(H40,テーブル_1[],7,FALSE),"")*H46,"") ->  | G44: 休暇時間 | H44: =IFERROR(VLOOKUP(H40,テーブル_2[],4,FALSE),"") -> 
C45: 医療税 | D45: =IFERROR(IFERROR(VLOOKUP(H40,テーブル_1[],9,FALSE),"")*H46,"") ->  | E45: 州税 | F45: =IFERROR(IFERROR(VLOOKUP(H40,テーブル_1[],6,FALSE),"")*H46,"") ->  | G45: 残業時間 | H45: =IFERROR(VLOOKUP(H40,テーブル_2[],6,FALSE),"") -> 
C46: 保険控除 | D46: =IFERROR(VLOOKUP(H40,テーブル_1[],11,FALSE),"") ->  | E46: その他の通常控除 | F46: =IFERROR(VLOOKUP(H40,テーブル_1[],12,FALSE),"") ->  | G46: 総支払 | H46: =IFERROR(VLOOKUP(H40,テーブル_2[],8,FALSE),"") -> 
C47: 税合計と通常控除 | D47: =IFERROR(SUM(F44:F46)+SUM(D44:D46),"") -> 0 | E47: その他の控除 | F47: =IFERROR(VLOOKUP(H40,テーブル_2[],10,FALSE),"") ->  | G47: 税合計および控除 | H47: =IFERROR(IFERROR(VLOOKUP(H40,テーブル_2[],9,FALSE),"")+F47,"") -> 
G48: 正味支払 | H48: =IFERROR(VLOOKUP(H40,テーブル_2[],11,FALSE),"") -> 
